fUST/lending_fUST_20250218
["ID","MTS","AMOUNT","RATE_DAILY","PERIOD"]
[353449247,1739837442034,-500.0,0.00013698,2]
[353449248,1739837442043,-501.25070969,0.00013698,2]
[353449249,1739837442052,-500.0,0.00013698,2]
[353449250,1739837442062,-500.0,0.00013698,2]
[353449251,1739837442071,-500.0,0.00013698,2]
[353449252,1739837442080,-500.0,0.00013698,2]
[353449253,1739837442089,-175.23931,0.00013699,2]
[353449254,1739837442099,-255.99473176,0.00013699,2]
[353449255,1739837442108,-500.0,0.00013699,2]
[353449256,1739837442117,-303.95258584,0.00013699,2]
[353449257,1739837442128,-500.0,0.00013699,2]
[353449258,1739837442138,-500.0,0.00013699,2]
[353449259,1739837442149,-500.0,0.00013699,2]
[353449260,1739837442159,-5502.95,0.00013778,2]
[353449261,1739837442168,-5502.95,0.00013778,2]
[353449262,1739837442178,-1201.54,0.00013779,2]
[353449263,1739837442187,-1201.54,0.00013779,2]
[353449264,1739837442196,-1201.54,0.00013779,2]
[353449265,1739837442206,-1201.54,0.00013779,2]
[353449266,1739837442216,-5502.95,0.00013779,2]
[353449267,1739837442225,-5502.95,0.00013779,2]
[353449268,1739837442234,-5502.95,0.00013779,2]
[353449269,1739837442243,-5502.95,0.00013779,2]
[353449270,1739837442252,-5502.95,0.00013779,2]
[353449271,1739837442261,-500.0,0.0001378,2]
[353449272,1739837442270,-329.92,0.0001378,2]
[353449273,1739837442280,-156.23,0.0001378,2]
[353449274,1739837442289,-549.0,0.0001378,2]
[353449275,1739837442299,-508.34,0.0001378,2]
[353449276,1739837442308,-500.0,0.0001378,2]
[353449277,1739837442317,-500.0,0.0001378,2]
[353449278,1739837442326,-500.0,0.0001378,2]
[353449279,1739837442336,-500.0,0.0001378,2]
[353449280,1739837442346,-500.0,0.0001378,2]
[353449281,1739837442355,-500.0,0.0001378,2]
[353449282,1739837442365,-500.0,0.0001378,2]
[353449283,1739837442375,-208.43,0.0001378,2]
[353449284,1739837442384,-500.0,0.0001378,2]
[353449285,1739837442394,-560.26,0.0001378,2]
[353449286,1739837442404,-500.0,0.0001378,2]
[353449287,1739837442414,-500.0,0.0001378,2]
[353449288,1739837442423,-500.0,0.0001378,2]
[353449289,1739837442432,-500.0,0.0001378,2]
[353449290,1739837442441,-500.0,0.0001378,2]
[353449291,1739837442451,-284.24,0.0001378,2]
[353449292,1739837442461,-500.0,0.0001378,2]
[353449293,1739837442470,-500.0,0.0001378,2]
[353449294,1739837442479,-500.0,0.0001378,2]
[353449295,1739837442489,-500.0,0.0001378,2]
[353449296,1739837442498,-500.0,0.0001378,2]
[353449297,1739837442507,-500.0,0.0001378,2]
[353449298,1739837442517,-500.0,0.0001378,2]
[353449299,1739837442527,-500.0,0.0001378,2]
[353449300,1739837442537,-500.0,0.0001378,2]
[353449301,1739837442548,-500.0,0.0001378,2]
[353449302,1739837442557,-500.0,0.0001378,2]
[353449303,1739837442566,-500.0,0.0001378,2]
[353449304,1739837442577,-500.0,0.0001378,2]
[353449305,1739837442586,-546.51,0.0001378,2]
[353449306,1739837442595,-500.0,0.0001378,2]
[353449307,1739837442605,-513.88386975,0.0001378,2]
[353449308,1739837442614,-500.0,0.0001378,2]
[353449309,1739837442623,-280.58544752,0.0001378,2]
[353449310,1739837442635,-500.0,0.0001378,2]
[353449311,1739837442647,-500.0,0.0001378,2]
[353449312,1739837442656,-500.0,0.0001378,2]
[353449313,1739837442665,-500.0,0.0001378,2]
[353449314,1739837442675,-500.0,0.0001378,2]
[353449315,1739837442689,-500.0,0.0001378,2]
[353449316,1739837442699,-500.0,0.0001378,2]
[353449317,1739837442711,-276.69603198,0.0001378,2]
[353449318,1739837442720,-500.0,0.0001378,2]
[353449319,1739837442731,-500.0,0.0001378,2]
[353449320,1739837442740,-500.0,0.0001378,2]
[353449321,1739837442750,-500.0,0.0001378,2]
[353449322,1739837442760,-500.0,0.0001378,2]
[353449323,1739837442770,-500.0,0.0001378,2]
[353449324,1739837442780,-500.0,0.0001378,2]
[353449325,1739837442789,-500.0,0.0001378,2]
[353449326,1739837442798,-500.0,0.0001378,2]
[353449327,1739837442807,-500.0,0.0001378,2]
[353449328,1739837442817,-500.0,0.0001378,2]
[353449329,1739837442826,-500.0,0.0001378,2]
[353449330,1739837442836,-500.0,0.0001378,2]
[353449331,1739837442846,-500.0,0.0001378,2]
[353449332,1739837442855,-500.0,0.0001378,2]
[353449333,1739837442865,-500.0,0.0001378,2]
[353449334,1739837442874,-500.0,0.0001378,2]
[353449335,1739837442883,-500.0,0.0001378,2]
[353449336,1739837442893,-500.0,0.0001378,2]
[353449337,1739837442903,-536.32,0.0001378,2]
[353449338,1739837442912,-500.0,0.0001378,2]
[353449339,1739837442922,-293.27831945,0.0001378,2]
[353449340,1739837442931,-827.78,0.0001378,2]
[353449341,1739837442940,-500.0,0.0001378,2]
[353449342,1739837442949,-500.0,0.0001378,2]
[353449343,1739837442958,-500.0,0.0001378,2]
[353449344,1739837442968,-500.0,0.0001378,2]
[353449345,1739837442977,-593.87,0.0001378,2]
[353449346,1739837442987,-2303.11,0.0001378,2]
[353449347,1739837442997,-500.0,0.0001378,2]
[353449348,1739837443006,-514.95,0.0001378,2]
[353449349,1739837443015,-505.0875877,0.0001378,2]
[353449350,1739837443025,-500.0,0.0001378,2]
[353449351,1739837443035,-1379.36,0.0001378,2]
[353449352,1739837443044,-500.0,0.0001378,2]
[353449353,1739837443053,-500.0,0.0001378,2]
[353449354,1739837443063,-1154.94,0.0001378,2]
[353449355,1739837443073,-803.17,0.0001378,2]
[353449357,1739837443082,-500.0,0.0001378,2]
[353449358,1739837443091,-500.0,0.0001378,2]
[353449359,1739837443100,-500.0,0.0001378,2]
[353449360,1739837443110,-511.65,0.0001378,2]
[353449361,1739837443119,-500.0,0.0001378,2]
[353449362,1739837443129,-500.0,0.0001378,2]
[353449364,1739837443138,-500.0,0.0001378,2]
[353449365,1739837443148,-500.0,0.0001378,2]
[353449366,1739837443157,-500.0,0.0001378,2]
[353449367,1739837443167,-1364.49,0.0001378,2]
[353449368,1739837443176,-4498.14,0.0001378,2]
[353449369,1739837443185,-500.0,0.0001378,2]
[353449371,1739837443194,-1959.38,0.0001378,2]
[353449373,1739837443204,-500.0,0.0001378,2]
[353449375,1739837443214,-500.0,0.0001378,2]
[353449377,1739837443223,-611.83,0.0001378,2]
[353449379,1739837443233,-500.0,0.0001378,2]
[353449381,1739837443243,-500.0,0.0001378,2]
[353449383,1739837443252,-500.0,0.0001378,2]
[353449385,1739837443261,-1172.34,0.0001378,2]
[353449387,1739837443271,-500.0,0.0001378,2]
[353449389,1739837443280,-500.0,0.0001378,2]
[353449391,1739837443289,-500.0,0.0001378,2]
[353449394,1739837443299,-500.0,0.0001378,2]
[353449396,1739837443309,-500.0,0.0001378,2]
[353449397,1739837443318,-500.0,0.0001378,2]
[353449398,1739837443328,-500.0,0.0001378,2]
[353449399,1739837443337,-15030.51,0.0001378,2]
[353449401,1739837443346,-500.0,0.0001378,2]
[353449403,1739837443356,-500.0,0.0001378,2]
[353449405,1739837443365,-500.0,0.0001378,2]
[353449407,1739837443375,-1590.4,0.0001378,2]
[353449420,1739837443489,-500.0,0.0001378,2]
[353449422,1739837443499,-500.0,0.0001378,2]
[353449424,1739837443508,-500.0,0.0001378,2]
[353449426,1739837443517,-751.69,0.0001378,2]
[353449428,1739837443527,-755.73,0.0001378,2]
[353449430,1739837443537,-500.0,0.0001378,2]
[353449432,1739837443547,-791.12,0.0001378,2]
[353449434,1739837443556,-562.15,0.0001378,2]
[353449436,1739837443566,-500.0,0.0001378,2]
[353449438,1739837443576,-500.0,0.0001378,2]
[353449440,1739837443585,-500.0,0.0001378,2]
[353449442,1739837443595,-500.0,0.0001378,2]
[353449444,1739837443604,-500.0,0.0001378,2]
[353449446,1739837443614,-500.0,0.0001378,2]
[353449447,1739837443624,-432.62094798,0.0001378,2]
[353449448,1739837443635,-500.0,0.0001378,2]
[353449449,1739837443645,-500.0,0.0001378,2]
[353449450,1739837443655,-503.28,0.0001378,2]
[353449451,1739837443664,-500.0,0.0001378,2]
[353449452,1739837443674,-500.0,0.0001378,2]
[353449453,1739837443687,-500.0,0.0001378,2]
[353449454,1739837443696,-756.47,0.0001378,2]
[353449455,1739837443706,-500.0,0.0001378,2]
[353449456,1739837443715,-500.0,0.0001378,2]
[353449457,1739837443725,-500.0,0.0001378,2]
[353449458,1739837443735,-3469.21,0.0001378,2]
[353449459,1739837443744,-1739.88,0.0001378,2]
[353449460,1739837443755,-500.0,0.0001378,2]
[353449461,1739837443765,-500.0,0.0001378,2]
[353449462,1739837443775,-500.0,0.0001378,2]
[353449463,1739837443785,-500.0,0.0001378,2]
[353449464,1739837443795,-500.0,0.0001378,2]
[353449465,1739837443805,-500.0,0.0001378,2]
[353449466,1739837443815,-500.0,0.0001378,2]
[353449467,1739837443826,-500.0,0.0001378,2]
[353449468,1739837443835,-656.567,0.00013802,2]
[353449469,1739837443845,-5502.95,0.00013861,2]
[353449470,1739837443855,-1201.54,0.00013862,2]
[353449471,1739837443864,-1201.54,0.00013862,2]
[353449472,1739837443874,-1201.54,0.00013862,2]
[353449473,1739837443884,-1201.54,0.00013862,2]
[353449474,1739837443893,-5502.95,0.00013862,2]
[353449475,1739837443902,-5502.95,0.00013862,2]
[353449476,1739837443913,-5502.95,0.00013862,2]
[353449477,1739837443923,-5502.95,0.00013862,2]
[353449479,1739837443933,-5502.95,0.00013862,2]
[353449480,1739837443943,-5503.03807931,0.00013862,2]
[353449481,1739837443953,-500.0,0.00013863,2]
[353449482,1739837443962,-549.0,0.00013863,2]
[353449483,1739837443972,-508.34,0.00013863,2]
[353449484,1739837443981,-500.0,0.00013863,2]
[353449485,1739837443991,-500.0,0.00013863,2]
[353449486,1739837444001,-500.0,0.00013863,2]
[353449487,1739837444011,-500.0,0.00013863,2]
[353449488,1739837444020,-500.0,0.00013863,2]
[353449489,1739837444030,-500.0,0.00013863,2]
[353449490,1739837444040,-560.26,0.00013863,2]
[353449491,1739837444050,-500.0,0.00013863,2]
[353449492,1739837444059,-500.0,0.00013863,2]
[353449493,1739837444069,-500.0,0.00013863,2]
[353449494,1739837444079,-500.0,0.00013863,2]
[353449495,1739837444089,-500.0,0.00013863,2]
[353449496,1739837444099,-500.0,0.00013863,2]
[353449497,1739837444109,-500.0,0.00013863,2]
[353449498,1739837444119,-500.0,0.00013863,2]
[353449499,1739837444130,-500.0,0.00013863,2]
[353449500,1739837444139,-500.0,0.00013863,2]
[353449501,1739837444149,-500.0,0.00013863,2]
[353449502,1739837444159,-199.64,0.00013863,2]
[353449503,1739837444169,-500.0,0.00013863,2]
[353449504,1739837444179,-500.0,0.00013863,2]
[353449505,1739837444189,-500.0,0.00013863,2]
[353449506,1739837444198,-500.0,0.00013863,2]
[353449507,1739837444208,-500.0,0.00013863,2]
[353449508,1739837444219,-546.51,0.00013863,2]
[353449509,1739837444228,-500.0,0.00013863,2]
[353449510,1739837444238,-500.0,0.00013863,2]
[353449511,1739837444248,-500.0,0.00013863,2]
[353449512,1739837444258,-500.0,0.00013863,2]
[353449513,1739837444268,-500.0,0.00013863,2]
[353449514,1739837444279,-500.0,0.00013863,2]
[353449515,1739837444289,-500.0,0.00013863,2]
[353449516,1739837444298,-500.0,0.00013863,2]
[353449517,1739837444307,-500.0,0.00013863,2]
[353449518,1739837444317,-500.0,0.00013863,2]
[353449519,1739837444326,-500.0,0.00013863,2]
[353449520,1739837444335,-500.0,0.00013863,2]
[353449521,1739837444345,-500.0,0.00013863,2]
[353449522,1739837444356,-522.9,0.00013863,2]
[353449523,1739837444365,-264.43229555,0.00013863,2]
[353449524,1739837444375,-500.0,0.00013863,2]
[353449525,1739837444385,-500.0,0.00013863,2]
[353449526,1739837444395,-500.0,0.00013863,2]
[353449527,1739837444405,-500.0,0.00013863,2]
[353449528,1739837444414,-500.0,0.00013863,2]
[353449529,1739837444424,-500.0,0.00013863,2]
[353449530,1739837444433,-500.0,0.00013863,2]
[353449531,1739837444442,-536.32,0.00013863,2]
[353449532,1739837444452,-500.0,0.00013863,2]
[353449533,1739837444462,-827.78,0.00013863,2]
[353449534,1739837444471,-500.0,0.00013863,2]
[353449535,1739837444481,-500.0,0.00013863,2]
[353449536,1739837444490,-500.0,0.00013863,2]
[353449537,1739837444499,-500.0,0.00013863,2]
[353449538,1739837444510,-593.87,0.00013863,2]
[353449539,1739837444519,-2303.11,0.00013863,2]
[353449540,1739837444529,-500.0,0.00013863,2]
[353449541,1739837444539,-514.95,0.00013863,2]
[353449542,1739837444549,-1379.36,0.00013863,2]
[353449543,1739837444560,-500.0,0.00013863,2]
[353449544,1739837444569,-227.47,0.00013863,2]
[353449545,1739837444579,-1154.94,0.00013863,2]
[353449546,1739837444588,-803.17,0.00013863,2]
[353449547,1739837444598,-511.65,0.00013863,2]
[353449548,1739837444607,-500.0,0.00013863,2]
[353449549,1739837444618,-500.0,0.00013863,2]
[353449550,1739837444628,-1364.49,0.00013863,2]
[353449551,1739837444638,-4498.14,0.00013863,2]
[353449552,1739837444647,-500.0,0.00013863,2]
[353449553,1739837444657,-1959.38,0.00013863,2]
[353449554,1739837444667,-500.0,0.00013863,2]
[353449555,1739837444680,-500.0,0.00013863,2]
[353449556,1739837444700,-611.83,0.00013863,2]
[353449557,1739837444721,-500.0,0.00013863,2]
[353449558,1739837444731,-500.0,0.00013863,2]
[353449559,1739837444741,-1172.34,0.00013863,2]
[353449560,1739837444752,-500.0,0.00013863,2]
[353449561,1739837444762,-500.0,0.00013863,2]
[353449562,1739837444772,-500.0,0.00013863,2]
[353449563,1739837444781,-500.0,0.00013863,2]
[353449564,1739837444790,-500.0,0.00013863,2]
[353449565,1739837444801,-15030.51,0.00013863,2]
[353449566,1739837444811,-500.0,0.00013863,2]
[353449567,1739837444820,-500.0,0.00013863,2]
[353449568,1739837444829,-1590.4,0.00013863,2]
[353449569,1739837444839,-500.0,0.00013863,2]
[353449570,1739837444848,-751.69,0.00013863,2]
[353449571,1739837444858,-755.73,0.00013863,2]
[353449572,1739837444868,-500.0,0.00013863,2]
[353449573,1739837444877,-791.12,0.00013863,2]
[353449574,1739837444888,-562.15,0.00013863,2]
[353449575,1739837444899,-500.0,0.00013863,2]
[353449576,1739837444910,-500.0,0.00013863,2]
[353449577,1739837444920,-500.0,0.00013863,2]
[353449578,1739837444929,-500.0,0.00013863,2]
[353449579,1739837444939,-500.0,0.00013863,2]
[353449580,1739837444949,-503.28,0.00013863,2]
[353449581,1739837444958,-404.41,0.00013863,2]
[353449582,1739837444968,-756.47,0.00013863,2]
[353449583,1739837444977,-362.74,0.00013863,2]
[353449584,1739837444987,-3469.21,0.00013863,2]
[353449585,1739837444996,-500.0,0.00013863,2]
[353449586,1739837445007,-1739.88,0.00013863,2]
[353449587,1739837445018,-352.69,0.00013863,2]
[353449588,1739837445028,-500.0,0.00013863,2]
[353449589,1739837445038,-500.0,0.00013863,2]
[353449590,1739837445047,-500.0,0.00013863,2]
[353449591,1739837445056,-500.0,0.00013863,2]
[353449592,1739837445066,-500.0,0.00013863,2]
[353449593,1739837445076,-179.05252281,0.000139,2]
[353449594,1739837445086,-1201.54,0.00013944,2]
[353449595,1739837445095,-1201.54,0.00013944,2]
[353449596,1739837445104,-1201.54,0.00013944,2]
[353449597,1739837445113,-1201.54,0.00013944,2]
[353449598,1739837445122,-500.0,0.00013945,2]
[353449599,1739837445134,-549.0,0.00013945,2]
[353449600,1739837445143,-508.34,0.00013945,2]
[353449601,1739837445153,-500.0,0.00013945,2]
[353449602,1739837445163,-500.0,0.00013945,2]
[353449603,1739837445174,-488.38,0.00013945,2]
[353449604,1739837445184,-500.0,0.00013945,2]
[353449605,1739837445195,-500.0,0.00013945,2]
[353449606,1739837445206,-560.26,0.00013945,2]
[353449607,1739837445216,-500.0,0.00013945,2]
[353449608,1739837445225,-500.0,0.00013945,2]
[353449609,1739837445235,-500.0,0.00013945,2]
[353449610,1739837445246,-500.0,0.00013945,2]
[353449611,1739837445255,-500.0,0.00013945,2]
[353449612,1739837445265,-500.0,0.00013945,2]
[353449613,1739837445274,-500.0,0.00013945,2]
[353449614,1739837445284,-237.32,0.00013945,2]
[353449615,1739837445294,-500.0,0.00013945,2]
[353449616,1739837445303,-500.0,0.00013945,2]
[353449617,1739837445313,-500.0,0.00013945,2]
[353449618,1739837445323,-500.0,0.00013945,2]
[353449619,1739837445333,-500.0,0.00013945,2]
[353449620,1739837445343,-500.0,0.00013945,2]
[353449621,1739837445352,-546.51,0.00013945,2]
[353449622,1739837445362,-500.0,0.00013945,2]
[353449623,1739837445371,-500.0,0.00013945,2]
[353449624,1739837445381,-500.0,0.00013945,2]
[353449625,1739837445390,-500.0,0.00013945,2]
[353449626,1739837445400,-500.0,0.00013945,2]
[353449627,1739837445496,-500.0,0.00013945,2]
[353449628,1739837445518,-500.0,0.00013945,2]
[353449629,1739837445528,-500.0,0.00013945,2]
[353449630,1739837445538,-500.0,0.00013945,2]
[353449631,1739837445547,-500.0,0.00013945,2]
[353449632,1739837445557,-500.0,0.00013945,2]
[353449633,1739837445567,-500.0,0.00013945,2]
[353449634,1739837445576,-500.0,0.00013945,2]
[353449635,1739837445586,-500.0,0.00013945,2]
[353449636,1739837445595,-536.32,0.00013945,2]
[353449637,1739837445605,-500.0,0.00013945,2]
[353449638,1739837445615,-827.78,0.00013945,2]
[353449639,1739837445625,-500.0,0.00013945,2]
[353449640,1739837445635,-500.0,0.00013945,2]
[353449641,1739837445646,-500.0,0.00013945,2]
[353449642,1739837445655,-500.0,0.00013945,2]
[353449643,1739837445665,-593.87,0.00013945,2]
[353449644,1739837445675,-2303.11,0.00013945,2]
[353449645,1739837445687,-500.0,0.00013945,2]
[353449646,1739837445697,-514.95,0.00013945,2]
[353449647,1739837445706,-1379.36,0.00013945,2]
[353449648,1739837445716,-500.0,0.00013945,2]
[353449649,1739837445726,-1154.94,0.00013945,2]
[353449650,1739837445739,-803.17,0.00013945,2]
[353449651,1739837445749,-511.65,0.00013945,2]
[353449652,1739837445759,-500.0,0.00013945,2]
[353449653,1739837445770,-500.0,0.00013945,2]
[353449654,1739837445780,-1364.49,0.00013945,2]
[353449655,1739837445789,-4498.14,0.00013945,2]
[353449656,1739837445799,-500.0,0.00013945,2]
[353449657,1739837445809,-1959.38,0.00013945,2]
[353449658,1739837445820,-500.0,0.00013945,2]
[353449659,1739837445830,-500.0,0.00013945,2]
[353449660,1739837445840,-611.83,0.00013945,2]
[353449661,1739837445849,-500.0,0.00013945,2]
[353449662,1739837445860,-500.0,0.00013945,2]
[353449663,1739837445869,-1172.34,0.00013945,2]
[353449664,1739837445879,-500.0,0.00013945,2]
[353449665,1739837445888,-500.0,0.00013945,2]
[353449666,1739837445898,-500.0,0.00013945,2]
[353449667,1739837445907,-500.0,0.00013945,2]
[353449668,1739837445919,-170.92,0.00013945,2]
[353449669,1739837445928,-15030.51,0.00013945,2]
[353449670,1739837445938,-500.0,0.00013945,2]
[353449671,1739837445948,-500.0,0.00013945,2]
[353449672,1739837445958,-1590.4,0.00013945,2]
[353449674,1739837445967,-500.0,0.00013945,2]
[353449675,1739837445976,-755.73,0.00013945,2]
[353449676,1739837445986,-751.69,0.00013945,2]
[353449677,1739837445995,-500.0,0.00013945,2]
[353449678,1739837446004,-791.12,0.00013945,2]
[353449679,1739837446014,-562.15,0.00013945,2]
[353449681,1739837446023,-500.0,0.00013945,2]
[353449682,1739837446032,-500.0,0.00013945,2]
[353449683,1739837446042,-500.0,0.00013945,2]
[353449684,1739837446051,-500.0,0.00013945,2]
[353449685,1739837446061,-500.0,0.00013945,2]
[353449686,1739837446070,-503.28,0.00013945,2]
[353449687,1739837446080,-756.47,0.00013945,2]
[353449688,1739837446091,-3469.21,0.00013945,2]
[353449689,1739837446100,-500.0,0.00013945,2]
[353449690,1739837446110,-1739.88,0.00013945,2]
[353449691,1739837446120,-500.0,0.00013945,2]
[353449692,1739837446130,-500.0,0.00013945,2]
[353449693,1739837446139,-500.0,0.00013945,2]
[353449694,1739837446148,-500.0,0.00013945,2]
[353449695,1739837446157,-500.0,0.00013945,2]
[353449696,1739837446167,-1201.54,0.00013999,2]
[353449697,1739837446177,-1201.54,0.00013999,2]
[353449698,1739837446186,-1201.54,0.00013999,2]
[353449699,1739837446196,-1201.54,0.00013999,2]
[353449700,1739837446206,-1201.54,0.00013999,2]
[353449701,1739837446216,-53671.63335391,0.00014,5]
[353449704,1739837446428,-500.0,0.00013698,2]
[353449705,1739837446438,-500.0,0.00013698,2]
[353449706,1739837446447,-500.0,0.00013698,2]
[353449707,1739837446456,-500.0,0.00013698,2]
[353449708,1739837446466,-172741.46345997,0.00014,5]
[353449709,1739837446476,-2405.05799861,0.00014,2]
[353449710,1739837446486,-300.0,0.00014,2]
[353449711,1739837446495,-39533.73170325,0.00014,2]
[353449712,1739837446505,-3754.303,0.00014,5]
[353449713,1739837446515,-250.0,0.00014,2]
[353449714,1739837446524,-372.03,0.00014,2]
[353449715,1739837446534,-300.47,0.00014,2]
[353449716,1739837446544,-154037.01551694,0.00014,2]
[353449717,1739837457777,1086.48627776,0.00022,120]
[353449720,1739837958402,1492.56372224,0.00022,120]
[353449722,1739838425107,-400.0,0.00010578,2]
[353449723,1739838425129,-400.0,0.00010685,2]
[353449724,1739838425150,-152.00286961,0.00013598,2]
[353449725,1739838425170,-3000.0,0.0001368,2]
[353449726,1739838425191,-300.0,0.00013696,2]
[353449727,1739838425212,-500.0,0.00013697,2]
[353449728,1739838425234,-500.0,0.00013697,2]
[353449729,1739838425257,-500.0,0.00013697,2]
[353449730,1739838425279,-500.0,0.00013697,2]
[353449731,1739838425302,-500.0,0.00013697,2]
[353449732,1739838425324,-500.0,0.00013697,2]
[353449733,1739838425347,-500.0,0.00013697,2]
[353449734,1739838425370,-500.0,0.00013697,2]
[353449735,1739838425391,-500.0,0.00013697,2]
[353449736,1739838425414,-185.88888221,0.00013697,2]
[353449737,1739838431085,-314.11111779,0.00013697,2]
[353449738,1739838431106,-500.0,0.00013697,2]
[353449739,1739838431130,-500.0,0.00013697,2]
[353449740,1739838431152,-178.17408708,0.00013697,2]
[353449741,1739838442092,-281.20317066,0.00013697,2]
[353449742,1739838444110,-40.62274226,0.00013697,2]
[353449743,1739838444135,-500.0,0.00013697,2]
[353449744,1739838444157,-207.56244914,0.00013697,2]
[353449805,1739838632994,-152.00286961,0.00013598,2]
[353449807,1739838633003,-3000.0,0.00013598,2]
[353449808,1739838633012,-108.72442743,0.00013696,2]
[353449809,1739838633024,-191.27557257,0.00013696,2]
[353449810,1739838633033,-292.43755086,0.00013697,2]
[353449811,1739838633044,-500.0,0.00013697,2]
[353449812,1739838633055,-500.0,0.00013697,2]
[353449813,1739838633065,-500.0,0.00013697,2]
[353449814,1739838633074,-500.0,0.00013697,2]
[353449815,1739838633085,-500.0,0.00013697,2]
[353449816,1739838633095,-500.0,0.00013697,2]
[353449817,1739838633104,-500.0,0.00013697,2]
[353449819,1739838633114,-500.0,0.00013697,2]
[353449820,1739838633123,-500.0,0.00013697,2]
[353449821,1739838633134,-223.66291312,0.00013697,2]
[353449822,1739838633143,-500.0,0.00013697,2]
[353449823,1739838633153,-500.0,0.00013697,2]
[353449824,1739838633162,-500.0,0.00013697,2]
[353449825,1739838633172,-500.0,0.00013697,2]
[353449826,1739838633182,-500.0,0.00013697,2]
[353449827,1739838633192,-292.64705109,0.00013697,2]
[353449828,1739838633204,-207.35294891,0.00013697,2]
[353449829,1739838633214,-212.64814357,0.00013697,2]
[353449830,1739838633223,-500.0,0.00013697,2]
[353449831,1739838633233,-500.0,0.00013697,2]
[353449832,1739838633243,-500.0,0.00013697,2]
[353449833,1739838633252,-500.0,0.00013697,2]
[353449834,1739838633262,-207.80440546,0.00013697,2]
[353449835,1739838633272,-457.27851869,0.00013698,2]
[353449836,1739838633283,-248.05737344,0.00013698,2]
[353449837,1739838633293,-630.00377702,0.00013698,2]
[353449838,1739838633304,-500.0,0.00013698,2]
[353449839,1739838633314,-537.17466334,0.00013698,2]
[353449840,1739838633324,-500.0,0.00013698,2]
[353449841,1739838633338,-523.68172223,0.00013698,2]
[353449842,1739838633352,-500.0,0.00013698,2]
[353449843,1739838633367,-500.0,0.00013698,2]
[353449844,1739838633381,-609.91187955,0.00013698,2]
[353449845,1739838633395,-500.0,0.00013698,2]
[353449846,1739838633406,-500.0,0.00013698,2]
[353449847,1739838633418,-500.0,0.00013698,2]
[353449848,1739838633434,-500.0,0.00013698,2]
[353449849,1739838633447,-500.0,0.00013698,2]
[353449850,1739838633460,-500.0,0.00013698,2]
[353449851,1739838633473,-500.0,0.00013698,2]
[353449852,1739838633487,-500.0,0.00013698,2]
[353449853,1739838633501,-500.0,0.00013698,2]
[353449854,1739838633515,-500.0,0.00013698,2]
[353449855,1739838633528,-500.0,0.00013698,2]
[353449856,1739838633543,-500.0,0.00013698,2]
[353449857,1739838633556,-500.0,0.00013698,2]
[353449858,1739838633568,-500.0,0.00013698,2]
[353449859,1739838633580,-500.0,0.00013698,2]
[353449860,1739838633594,-500.0,0.00013698,2]
[353449861,1739838633606,-500.0,0.00013698,2]